[Event "Open Nuevo Centro. Jornada 2"]
[Site "Chess.com"]
[Date "2020.06.26"]
[Round "2"]
[White "Yuste Valenzuela, Alejandro"]
[Black "Randazzo, Adrián"]
[Result "0-1"]
[WhiteElo "1858"]
[BlackElo "2468"]
[TimeControl "180+2"]
[EndTime "10:48:45 PDT"]
[Termination "Victoria de Nikithebest por abandono"]

1. e4 {[%clk 0:03:01.9]} 1... c5 {[%clk 0:02:59.7]} 2. Nf3 {[%clk 0:03:02.2]}
2... d6 {[%clk 0:03:00.9]} 3. d4 {[%clk 0:03:02.9]} 3... cxd4 {[%clk 0:03:01.9]}
4. Nxd4 {[%clk 0:03:04.8]} 4... Nf6 {[%clk 0:03:03.4]} 5. Nc3 {[%clk 0:03:06]}
5... a6 {[%clk 0:03:03.6]} 6. Be2 {[%clk 0:03:06.1]} 6... e5 {[%clk 0:03:02.2]}
7. Nb3 {[%clk 0:03:06.1]} 7... Be7 {[%clk 0:03:03.5]} 8. g4 {[%clk 0:03:04.9]}
8... h6 {[%clk 0:03:02.3]} 9. h4 {[%clk 0:03:03.5]} 9... b5 {[%clk 0:03:00.9]}
10. Be3 {[%clk 0:03:02.4]} 10... Bb7 {[%clk 0:02:59.8]} 11. f3 {[%clk
0:03:01.1]} 11... Nbd7 {[%clk 0:02:49.7]} 12. Qd2 {[%clk 0:02:54.2]} 12... Rc8
{[%clk 0:02:50.5]} 13. O-O-O {[%clk 0:02:52.7]} 13... b4 {[%clk 0:02:49.7]} 14.
Nd5 {[%clk 0:02:52.1]} 14... Nxd5 {[%clk 0:02:45.5]} 15. exd5 {[%clk 0:02:54]}
15... Qc7 {[%clk 0:02:44.8]} 16. Kb1 {[%clk 0:02:54]} 16... Nf6 {[%clk
0:02:37.5]} 17. g5 {[%clk 0:02:48]} 17... Nxd5 {[%clk 0:02:35.9]} 18. gxh6
{[%clk 0:02:26.7]} 18... gxh6 {[%clk 0:02:31.8]} 19. Bxh6 {[%clk 0:02:12.9]}
19... Rxh6 {[%clk 0:02:29.1]} 20. Qxh6 {[%clk 0:02:14.8]} 20... Qxc2+ {[%clk
0:02:30.1]} 21. Ka1 {[%clk 0:02:16.4]} 21... Qxe2 {[%clk 0:02:28.8]} 22. Na5
{[%clk 0:01:48.8]} 22... Ba8 {[%clk 0:02:15.7]} 23. Rc1 {[%clk 0:01:47.8]} 23...
Nc3 {[%clk 0:02:09]} 24. bxc3 {[%clk 0:01:35.7]} 24... bxc3 {[%clk 0:02:07.8]}
25. Rb1 {[%clk 0:01:34]} 25... c2 {[%clk 0:02:08.9]} 26. Rbc1 {[%clk 0:01:30.2]}
26... Qxf3 {[%clk 0:02:02.2]} 27. Qd2 {[%clk 0:01:00.2]} 27... Bf6 {[%clk
0:01:54]} 28. Rxc2 {[%clk 0:00:28.8]} 28... Qxh1+ {[%clk 0:01:51.4]} 29. Kb2
{[%clk 0:00:29.9]} 29... e4+ {[%clk 0:01:49]} 30. Kb3 {[%clk 0:00:29.6]} 30...
Qb1+ {[%clk 0:01:40.8]} 31. Rb2 {[%clk 0:00:23.9]} 31... Rb8+ {[%clk 0:01:39.8]}
0

[Event "Open Nuevo Centro. Jornada 2"]
[Site "Chess.com"]
[Date "2020.06.26"]
[Round "2"]
[White "Aguado, Pablo Luis"]
[Black "Gimeno Higueras, Roberto"]
[Result "0-1"]
[WhiteElo "1665"]
[BlackElo "1991"]
[TimeControl "180+2"]
[EndTime "10:48:45 PDT"]
[Termination "Victoria de Chicogrande2 por abandono"]

1. d4 {[%clk 0:03:01.9]} 1... Nf6 {[%clk 0:03:00.4]} 2. c4 {[%clk 0:03:01.7]}
2... e6 {[%clk 0:03:01.4]} 3. Nc3 {[%clk 0:03:02.2]} 3... Bb4 {[%clk 0:03:02.1]}
4. e3 {[%clk 0:03:03]} 4... O-O {[%clk 0:03:01.8]} 5. Bd3 {[%clk 0:03:01.3]}
5... c5 {[%clk 0:03:02.5]} 6. a3 {[%clk 0:02:58.8]} 6... Bxc3+ {[%clk
0:03:02.3]} 7. bxc3 {[%clk 0:02:59.5]} 7... Nc6 {[%clk 0:03:02.3]} 8. Ne2 {[%clk
0:02:58.9]} 8... d6 {[%clk 0:03:01.1]} 9. O-O {[%clk 0:02:50.6]} 9... e5 {[%clk
0:03:00.5]} 10. d5 {[%clk 0:02:37.8]} 10... Na5 {[%clk 0:03:00.3]} 11. e4 {[%clk
0:02:36.3]} 11... b6 {[%clk 0:02:57.8]} 12. Bg5 {[%clk 0:02:31.4]} 12... h6
{[%clk 0:02:52.6]} 13. Bh4 {[%clk 0:02:31.8]} 13... Ba6 {[%clk 0:02:49.8]} 14.
Qa4 {[%clk 0:02:31]} 14... Qe8 {[%clk 0:02:39.9]} 15. Qc2 {[%clk 0:02:15.6]}
15... Nd7 {[%clk 0:02:27.8]} 16. f4 {[%clk 0:01:44.5]} 16... Bxc4 {[%clk
0:02:23.9]} 17. f5 {[%clk 0:01:41.6]} 17... f6 {[%clk 0:02:22.1]} 18. Rf3 {[%clk
0:01:34.4]} 18... Bxd3 {[%clk 0:02:13.5]} 19. Qxd3 {[%clk 0:01:34.3]} 19... c4
{[%clk 0:02:14.4]} 20. Qd2 {[%clk 0:01:34.1]} 20... Nb3 {[%clk 0:02:13.1]} 21.
Qe3 {[%clk 0:01:12.4]} 21... Nxa1 {[%clk 0:02:10.7]} 22. Rg3 {[%clk 0:01:13.6]}
22... Qh5 {[%clk 0:02:02.3]} 23. Rh3 {[%clk 0:01:05.2]} 23... Nc2 {[%clk
0:01:57.6]} 24. Qd2 {[%clk 0:01:04.5]} 24... Qg4 {[%clk 0:01:37.5]} 25. Qxc2
{[%clk 0:00:56]} 25... Nc5 {[%clk 0:01:38.3]} 26. Be1 {[%clk 0:00:32.1]} 26...
Qxe4 {[%clk 0:01:33.7]} 27. Qd2 {[%clk 0:00:27.3]} 27... Qxf5 {[%clk 0:01:22.2]}
28. Rg3 {[%clk 0:00:27.2]} 28... Ne4 {[%clk 0:01:20.3]} 0

[Event "Open Nuevo Centro. Jornada 2"]
[Site "Chess.com"]
[Date "2020.06.26"]
[Round "2"]
[White "Martínez Albelda, Mariela"]
[Black "Cebolla Ruiz, David"]
[Result "0-1"]
[WhiteElo "1002"]
[BlackElo "1579"]
[TimeControl "180+2"]
[EndTime "10:48:48 PDT"]
[Termination "Victoria de Dabelcebolla por jaque mate"]

1. d4 {[%clk 0:03:01.9]} 1... Nf6 {[%clk 0:02:59.6]} 2. Nf3 {[%clk 0:03:00.7]}
2... g6 {[%clk 0:02:53]} 3. Nc3 {[%clk 0:03:01]} 3... Bg7 {[%clk 0:02:50.9]} 4.
Bf4 {[%clk 0:03:01.7]} 4... d6 {[%clk 0:02:51.7]} 5. e3 {[%clk 0:03:00.8]} 5...
O-O {[%clk 0:02:19.9]} 6. Bc4 {[%clk 0:02:58.5]} 6... Nbd7 {[%clk 0:01:49.9]} 7.
Ng5 {[%clk 0:02:54.6]} 7... e6 {[%clk 0:01:44.9]} 8. Nge4 {[%clk 0:02:48.6]}
8... d5 {[%clk 0:01:42.3]} 9. Nxf6+ {[%clk 0:02:48.2]} 9... Bxf6 {[%clk
0:01:42.8]} 10. Bb5 {[%clk 0:02:46]} 10... c6 {[%clk 0:01:43.5]} 11. Ba4 {[%clk
0:02:46.5]} 11... a5 {[%clk 0:01:41.7]} 12. a3 {[%clk 0:02:38.2]} 12... c5
{[%clk 0:01:38.3]} 13. dxc5 {[%clk 0:02:38]} 13... Nxc5 {[%clk 0:01:39.1]} 14.
Bb3 {[%clk 0:02:37.7]} 14... Bxc3+ {[%clk 0:01:38.9]} 15. bxc3 {[%clk 0:02:37]}
15... Ne4 {[%clk 0:01:40.1]} 16. f3 {[%clk 0:02:35.3]} 16... Nxc3 {[%clk
0:01:38.8]} 17. Qd3 {[%clk 0:02:30]} 17... Qf6 {[%clk 0:01:25.6]} 18. O-O {[%clk
0:02:13.2]} 18... a4 {[%clk 0:01:25.1]} 19. Ba2 {[%clk 0:02:09.6]} 19... Nxa2
{[%clk 0:01:22.8]} 20. Rxa2 {[%clk 0:02:10.1]} 20... e5 {[%clk 0:01:21.2]} 21.
Bg3 {[%clk 0:02:09.2]} 21... Be6 {[%clk 0:01:19.9]} 22. Rb2 {[%clk 0:02:06.6]}
22... e4 {[%clk 0:01:15.4]} 23. Qb5 {[%clk 0:01:57.3]} 23... exf3 {[%clk
0:00:34.6]} 24. gxf3 {[%clk 0:01:57.1]} 24... Qc3 {[%clk 0:00:20.6]} 25. Be1
{[%clk 0:01:50.9]} 25... Qxe3+ {[%clk 0:00:21]} 26. Bf2 {[%clk 0:01:51]} 26...
Qg5+ {[%clk 0:00:21.2]} 27. Kh1 {[%clk 0:01:49.8]} 27... Bh3 {[%clk 0:00:20.6]}
28. Rg1 {[%clk 0:01:48.8]} 28... Qd2 {[%clk 0:00:21.1]} 29. Be1 {[%clk
0:01:36.8]} 29... Qf4 {[%clk 0:00:20.8]} 30. Bg3 {[%clk 0:01:34.1]} 30... Qxf3+
{[%clk 0:00:21.8]} 31. Rg2 {[%clk 0:01:28.7]} 31... Qxg2# {[%clk 0:00:23.2]} 0

[Event "Open Nuevo Centro. Jornada 2"]
[Site "Chess.com"]
[Date "2020.06.26"]
[Round "2"]
[White "Martínez Cuenca, Adrián "]
[Black "Alvarez Usina, Jordi"]
[Result "0-1"]
[WhiteElo "598"]
[BlackElo "1193"]
[TimeControl "180+2"]
[EndTime "10:49:01 PDT"]
[Termination "Victoria de jordi_alvarez por jaque mate"]

1. e4 {[%clk 0:03:01.9]} 1... e5 {[%clk 0:02:57.7]} 2. Nf3 {[%clk 0:02:50.5]}
2... Nf6 {[%clk 0:02:55.2]} 3. Nxe5 {[%clk 0:02:49.5]} 3... d6 {[%clk
0:02:52.9]} 4. Nd3 {[%clk 0:02:36.3]} 4... Nxe4 {[%clk 0:02:51.7]} 5. f3 {[%clk
0:02:30.7]} 5... Nf6 {[%clk 0:02:49]} 6. c4 {[%clk 0:02:25.5]} 6... Qe7+ {[%clk
0:02:46.8]} 7. Be2 {[%clk 0:02:22.4]} 7... g6 {[%clk 0:02:46.1]} 8. O-O {[%clk
0:02:18.2]} 8... Bg7 {[%clk 0:02:46.4]} 9. Nc3 {[%clk 0:02:10.8]} 9... O-O
{[%clk 0:02:46.2]} 10. f4 {[%clk 0:02:10.6]} 10... Re8 {[%clk 0:02:41.1]} 11. b4
{[%clk 0:01:56.1]} 11... d5 {[%clk 0:02:20.8]} 12. Nc5 {[%clk 0:01:46.4]} 12...
d4 {[%clk 0:02:05.3]} 13. N3e4 {[%clk 0:01:42.5]} 13... Nxe4 {[%clk 0:01:58]}
14. d3 {[%clk 0:01:33.4]} 14... Nxc5 {[%clk 0:01:56.9]} 15. bxc5 {[%clk
0:01:33]} 15... Qxe2 {[%clk 0:01:55.3]} 16. Qxe2 {[%clk 0:01:32.3]} 16... Rxe2
{[%clk 0:01:54.7]} 17. h3 {[%clk 0:01:27.8]} 17... b6 {[%clk 0:01:54.6]} 18. Kh2
{[%clk 0:01:27.5]} 18... Bb7 {[%clk 0:01:53.8]} 19. cxb6 {[%clk 0:01:24.3]}
19... Rxg2+ {[%clk 0:01:42.3]} 20. Kh1 {[%clk 0:01:23.1]} 20... cxb6 {[%clk
0:01:42]} 21. Rg1 {[%clk 0:01:18.6]} 21... Rxa2+ {[%clk 0:01:39.1]} 22. Rg2
{[%clk 0:01:10]} 22... Rxg2 {[%clk 0:01:25.9]} 23. Ba3 {[%clk 0:01:00.9]} 23...
Ra2+ {[%clk 0:01:24.2]} 24. Kg1 {[%clk 0:00:50.1]} 24... Rxa1+ {[%clk
0:01:23.4]} 25. Bc1 {[%clk 0:00:43.9]} 25... Rxc1+ {[%clk 0:01:23.5]} 26. Kf2
{[%clk 0:00:43.4]} 26... Nc6 {[%clk 0:01:16.5]} 27. h4 {[%clk 0:00:32.6]} 27...
Re8 {[%clk 0:01:13.1]} 28. Kf3 {[%clk 0:00:22.1]} 28... Re3+ {[%clk 0:01:10.9]}
29. Kg4 {[%clk 0:00:21]} 29... Rg1# {[%clk 0:01:10.1]} 0

[Event "Open Nuevo Centro. Jornada 2"]
[Site "Chess.com"]
[Date "2020.06.26"]
[Round "2"]
[White "Vega Gutiérrez, Sabrina"]
[Black "Salvador Buiza, Victor"]
[Result "1-0"]
[WhiteElo "2026"]
[BlackElo "1743"]
[TimeControl "180+2"]
[EndTime "10:49:09 PDT"]
[Termination "Victoria de Valeron87 por jaque mate"]

1. e4 {[%clk 0:03:01.9]} 1... e6 {[%clk 0:02:59.8]} 2. Qe2 {[%clk 0:03:00]} 2...
Nc6 {[%clk 0:02:57.2]} 3. Nf3 {[%clk 0:02:59.3]} 3... e5 {[%clk 0:02:57.7]} 4.
c3 {[%clk 0:03:00]} 4... Bc5 {[%clk 0:02:51]} 5. b4 {[%clk 0:02:55.9]} 5... Bd6
{[%clk 0:02:47.5]} 6. b5 {[%clk 0:02:51.6]} 6... Nb8 {[%clk 0:02:48.3]} 7. d4
{[%clk 0:02:51.6]} 7... exd4 {[%clk 0:02:48.8]} 8. e5 {[%clk 0:02:49.5]} 8...
Be7 {[%clk 0:02:47.9]} 9. cxd4 {[%clk 0:02:50.4]} 9... d6 {[%clk 0:02:47.8]} 10.
Qe4 {[%clk 0:02:28.7]} 10... dxe5 {[%clk 0:02:18.8]} 11. dxe5 {[%clk 0:02:28.8]}
11... c6 {[%clk 0:02:19.2]} 12. Be2 {[%clk 0:02:20.7]} 12... g6 {[%clk
0:01:21.1]} 13. O-O {[%clk 0:02:15]} 13... Bf5 {[%clk 0:01:21.4]} 14. Qa4 {[%clk
0:02:06.5]} 14... f6 {[%clk 0:01:13.8]} 15. Rd1 {[%clk 0:02:00.6]} 15... Qc7
{[%clk 0:01:07.2]} 16. Bf4 {[%clk 0:02:01.4]} 16... Qc8 {[%clk 0:00:37.7]} 17.
Nc3 {[%clk 0:01:54.9]} 17... g5 {[%clk 0:00:27.7]} 18. Bg3 {[%clk 0:01:54.9]}
18... h5 {[%clk 0:00:22.1]} 19. exf6 {[%clk 0:01:54.6]} 19... Nxf6 {[%clk
0:00:20.2]} 20. Nxg5 {[%clk 0:01:45.1]} 20... Ng4 {[%clk 0:00:19.2]} 21. Nce4
{[%clk 0:01:23.8]} 21... cxb5 {[%clk 0:00:21]} 22. Bxb5+ {[%clk 0:01:22.9]}
22... Nc6 {[%clk 0:00:21.2]} 23. Rac1 {[%clk 0:01:15.4]} 23... Bd7 {[%clk
0:00:19.8]} 24. Bd6 {[%clk 0:01:04.5]} 24... Bxg5 {[%clk 0:00:18.4]} 25. Nxg5
{[%clk 0:01:04.7]} 25... a6 {[%clk 0:00:18.1]} 26. Qe4+ {[%clk 0:01:03.5]} 26...
Kd8 {[%clk 0:00:16.6]} 27. Bxc6 {[%clk 0:01:03.1]} 27... Bxc6 {[%clk 0:00:16.4]}
28. Qe7# {[%clk 0:01:04]} 1

[Event "Open Nuevo Centro. Jornada 2"]
[Site "Chess.com"]
[Date "2020.06.26"]
[Round "2"]
[White "Vicent Lázaro, Elena"]
[Black "Colomer Martinez, Isabel"]
[Result "0-1"]
[WhiteElo "656"]
[BlackElo "1225"]
[TimeControl "180+2"]
[EndTime "10:49:18 PDT"]
[Termination "Victoria de jupiter555 por jaque mate"]

1. e3 {[%clk 0:03:01.9]} 1... e5 {[%clk 0:01:42.1]} 2. c4 {[%clk 0:02:57.6]}
2... Nc6 {[%clk 0:01:41.4]} 3. Nc3 {[%clk 0:02:53.9]} 3... Nf6 {[%clk
0:01:41.5]} 4. Bd3 {[%clk 0:02:53.9]} 4... Bc5 {[%clk 0:01:36.5]} 5. Bb1 {[%clk
0:02:54.6]} 5... d6 {[%clk 0:01:36.1]} 6. Qa4 {[%clk 0:02:51.5]} 6... Be6 {[%clk
0:01:25.1]} 7. Nb5 {[%clk 0:02:49.8]} 7... a6 {[%clk 0:01:17.9]} 8. Qa5 {[%clk
0:02:42]} 8... Nxa5 {[%clk 0:01:17.3]} 9. Na3 {[%clk 0:02:32.3]} 9... Bxa3
{[%clk 0:01:16.3]} 10. bxa3 {[%clk 0:02:32.9]} 10... Bxc4 {[%clk 0:01:16.3]} 11.
d3 {[%clk 0:02:30.3]} 11... Bb5 {[%clk 0:01:13.1]} 12. Bc2 {[%clk 0:02:25.4]}
12... Bc6 {[%clk 0:01:13.2]} 13. Nf3 {[%clk 0:02:20.8]} 13... e4 {[%clk
0:01:10.1]} 14. dxe4 {[%clk 0:02:21]} 14... Nxe4 {[%clk 0:01:03]} 15. Bxe4
{[%clk 0:02:21.4]} 15... Bxe4 {[%clk 0:01:02.5]} 16. O-O {[%clk 0:02:19.1]}
16... Qf6 {[%clk 0:00:57.6]} 17. Rb1 {[%clk 0:02:02.7]} 17... Bxb1 {[%clk
0:00:53.7]} 18. Bb2 {[%clk 0:02:03]} 18... Qxb2 {[%clk 0:00:50.7]} 19. Nh4
{[%clk 0:02:00]} 19... Qf6 {[%clk 0:00:43.7]} 20. Nf3 {[%clk 0:01:58.7]} 20...
Be4 {[%clk 0:00:42.7]} 21. Nd2 {[%clk 0:01:56]} 21... Bd5 {[%clk 0:00:43]} 22.
e4 {[%clk 0:01:54.7]} 22... Bc6 {[%clk 0:00:43.1]} 23. e5 {[%clk 0:01:54.6]}
23... dxe5 {[%clk 0:00:41.4]} 24. f3 {[%clk 0:01:54.5]} 24... O-O {[%clk
0:00:31.1]} 25. Ne4 {[%clk 0:01:54.3]} 25... Qe7 {[%clk 0:00:25.4]} 26. Nf2
{[%clk 0:01:41.8]} 26... e4 {[%clk 0:00:17.9]} 27. fxe4 {[%clk 0:01:39.9]} 27...
Bxe4 {[%clk 0:00:17.8]} 28. Nxe4 {[%clk 0:01:39.7]} 28... Qxe4 {[%clk
0:00:18.1]} 29. Kf2 {[%clk 0:01:35.7]} 29... Rfe8 {[%clk 0:00:17.2]} 30. Re1
{[%clk 0:01:35.6]} 30... Qxe1+ {[%clk 0:00:17.2]} 31. Kf3 {[%clk 0:01:34.7]}
31... Qe2+ {[%clk 0:00:16.8]} 32. Kg3 {[%clk 0:01:35.8]} 32... Qe3+ {[%clk
0:00:16]} 33. Kg4 {[%clk 0:01:36.3]} 33... Re4+ {[%clk 0:00:16.6]} 34. Kh5
{[%clk 0:01:36.6]} 34... Qf4 {[%clk 0:00:17]} 35. g4 {[%clk 0:01:35.7]} 35...
Qxg4# {[%clk 0:00:17.2]} 0

[Event "Open Nuevo Centro. Jornada 2"]
[Site "Chess.com"]
[Date "2020.06.26"]
[Round "2"]
[White "Borissov, Julián"]
[Black "Giaccio González, Alfredo Gustavo"]
[Result "0-1"]
[WhiteElo "1839"]
[BlackElo "2383"]
[TimeControl "180+2"]
[EndTime "10:49:20 PDT"]
[Termination "Victoria de AGG2020 por abandono"]

1. e4 {[%clk 0:03:01.9]} 1... e6 {[%clk 0:03:00.7]} 2. d4 {[%clk 0:03:02.1]}
2... d5 {[%clk 0:03:02.2]} 3. Nc3 {[%clk 0:03:02]} 3... Nc6 {[%clk 0:03:03.2]}
4. Nf3 {[%clk 0:02:57.9]} 4... Nf6 {[%clk 0:03:03.2]} 5. exd5 {[%clk 0:02:55.3]}
5... Nxd5 {[%clk 0:02:58.6]} 6. Bb5 {[%clk 0:02:51]} 6... Bd7 {[%clk 0:02:55]}
7. O-O {[%clk 0:02:50.3]} 7... Nxc3 {[%clk 0:02:55.1]} 8. bxc3 {[%clk
0:02:48.9]} 8... Be7 {[%clk 0:02:54.9]} 9. Re1 {[%clk 0:02:45.3]} 9... O-O
{[%clk 0:02:55]} 10. Bd3 {[%clk 0:02:42.7]} 10... Bf6 {[%clk 0:02:44.3]} 11. Rb1
{[%clk 0:02:39.5]} 11... b6 {[%clk 0:02:37.4]} 12. Ba3 {[%clk 0:02:17.1]} 12...
Re8 {[%clk 0:02:37.4]} 13. Be4 {[%clk 0:02:15.8]} 13... Rc8 {[%clk 0:02:33.6]}
14. Nd2 {[%clk 0:02:05.8]} 14... Na5 {[%clk 0:01:56.2]} 15. Re3 {[%clk
0:01:30.1]} 15... g6 {[%clk 0:01:40.2]} 16. h4 {[%clk 0:01:25.7]} 16... Bxh4
{[%clk 0:01:22.4]} 17. Rh3 {[%clk 0:01:24.9]} 17... Bf6 {[%clk 0:01:18.6]} 18.
g3 {[%clk 0:01:14.2]} 18... e5 {[%clk 0:01:18.6]} 19. Rxh7 {[%clk 0:01:07.3]}
19... Kxh7 {[%clk 0:01:16.2]} 20. Qh5+ {[%clk 0:01:08.1]} 20... Kg7 {[%clk
0:01:15.5]} 21. Qf3 {[%clk 0:00:58.9]} 21... exd4 {[%clk 0:01:12.1]} 22. cxd4
{[%clk 0:00:58.3]} 22... Bxd4 {[%clk 0:00:46.5]} 23. Kg2 {[%clk 0:00:55.6]}
23... c5 {[%clk 0:00:46.3]} 24. c3 {[%clk 0:00:52]} 24... Bf6 {[%clk 0:00:46.1]}
25. Rh1 {[%clk 0:00:49.9]} 25... Bc6 {[%clk 0:00:46.1]} 26. Bxc6 {[%clk
0:00:48.6]} 26... Rxc6 {[%clk 0:00:44.5]} 27. Ne4 {[%clk 0:00:45.3]} 27... Qd5
{[%clk 0:00:40.9]} 28. Re1 {[%clk 0:00:33.3]} 28... Rce6 {[%clk 0:00:40.9]} 0

[Event "Open Nuevo Centro. Jornada 2"]
[Site "Chess.com"]
[Date "2020.06.26"]
[Round "2"]
[White "Clement Gómez, José Antonio"]
[Black "Gómez Alonso, Óscar"]
[Result "1-0"]
[WhiteElo "2483"]
[BlackElo "1859"]
[TimeControl "180+2"]
[EndTime "10:49:26 PDT"]
[Termination "Victoria de P4AD por jaque mate"]

1. c4 {[%clk 0:03:01.9]} 1... Nf6 {[%clk 0:02:59.8]} 2. g3 {[%clk 0:03:03.8]}
2... c5 {[%clk 0:03:00.3]} 3. Bg2 {[%clk 0:03:05.7]} 3... Nc6 {[%clk 0:03:01.4]}
4. Nf3 {[%clk 0:03:07.6]} 4... e6 {[%clk 0:03:02.7]} 5. O-O {[%clk 0:03:09.5]}
5... d5 {[%clk 0:03:03.4]} 6. Nc3 {[%clk 0:03:09.1]} 6... g6 {[%clk 0:02:57.5]}
7. cxd5 {[%clk 0:03:09.6]} 7... exd5 {[%clk 0:02:58.5]} 8. d4 {[%clk 0:03:11.1]}
8... cxd4 {[%clk 0:02:57.7]} 9. Nxd4 {[%clk 0:03:13]} 9... Bg7 {[%clk
0:02:53.5]} 10. Bg5 {[%clk 0:03:11.5]} 10... Be6 {[%clk 0:02:47.3]} 11. e4
{[%clk 0:02:46]} 11... dxe4 {[%clk 0:02:30.5]} 12. Nxe6 {[%clk 0:02:40.7]} 12...
Qxd1 {[%clk 0:02:30.5]} 13. Raxd1 {[%clk 0:02:42.6]} 13... fxe6 {[%clk
0:02:28.9]} 14. Nxe4 {[%clk 0:02:22.2]} 14... Nxe4 {[%clk 0:02:18.5]} 15. Bxe4
{[%clk 0:02:24.1]} 15... Rc8 {[%clk 0:02:16]} 16. Rd6 {[%clk 0:02:13.6]} 16...
e5 {[%clk 0:02:10.6]} 17. Rfd1 {[%clk 0:01:44]} 17... Nd4 {[%clk 0:01:57.9]} 18.
Bxb7 {[%clk 0:01:25.5]} 18... Rb8 {[%clk 0:01:36.5]} 19. Bd5 {[%clk 0:01:16.4]}
19... Bf8 {[%clk 0:01:07.2]} 20. Ra6 {[%clk 0:01:03]} 20... Bc5 {[%clk
0:00:54.5]} 21. Bf6 {[%clk 0:00:58.5]} 21... Rf8 {[%clk 0:00:51.6]} 22. Bxe5
{[%clk 0:00:56]} 22... Rxb2 {[%clk 0:00:48.4]} 23. Bxd4 {[%clk 0:00:30.4]} 23...
Bxd4 {[%clk 0:00:43.9]} 24. Rxd4 {[%clk 0:00:32.3]} 24... Rfxf2 {[%clk
0:00:45.6]} 25. Rxa7 {[%clk 0:00:24.4]} 25... Rxh2 {[%clk 0:00:40.1]} 26. Bc6+
{[%clk 0:00:24.6]} 26... Kf8 {[%clk 0:00:33.5]} 27. Rd8# {[%clk 0:00:26.5]} 1

[Event "Open Nuevo Centro. Jornada 2"]
[Site "Chess.com"]
[Date "2020.06.26"]
[Round "2"]
[White "Garcia, Jhoel"]
[Black "Donate Moreno, Silvia"]
[Result "1-0"]
[WhiteElo "2303"]
[BlackElo "1779"]
[TimeControl "180+2"]
[EndTime "10:49:39 PDT"]
[Termination "Victoria de shoels por abandono"]

1. Nf3 {[%clk 0:03:01.9]} 1... g6 {[%clk 0:03:00.4]} 2. d4 {[%clk 0:03:03.1]}
2... Bg7 {[%clk 0:03:00.5]} 3. c4 {[%clk 0:03:05]} 3... Nf6 {[%clk 0:03:00.9]}
4. g3 {[%clk 0:03:05.9]} 4... d6 {[%clk 0:03:01.4]} 5. Bg2 {[%clk 0:03:07.4]}
5... O-O {[%clk 0:03:02.4]} 6. O-O {[%clk 0:03:08.9]} 6... Nc6 {[%clk
0:02:58.5]} 7. b3 {[%clk 0:03:09.6]} 7... e5 {[%clk 0:02:58.9]} 8. Bb2 {[%clk
0:03:10.7]} 8... Qe7 {[%clk 0:02:57.5]} 9. d5 {[%clk 0:03:11.2]} 9... Nb8 {[%clk
0:02:52.4]} 10. Nc3 {[%clk 0:03:12.3]} 10... Nbd7 {[%clk 0:02:48.7]} 11. e4
{[%clk 0:03:13]} 11... Ne8 {[%clk 0:02:46]} 12. Re1 {[%clk 0:03:06.3]} 12... f5
{[%clk 0:02:46.1]} 13. exf5 {[%clk 0:03:07]} 13... gxf5 {[%clk 0:02:45.1]} 14.
Nd4 {[%clk 0:03:07]} 14... Ndf6 {[%clk 0:02:41.3]} 15. Qc2 {[%clk 0:02:54.7]}
15... Ng4 {[%clk 0:02:24.7]} 16. Ne6 {[%clk 0:02:22]} 16... Bxe6 {[%clk
0:02:22.4]} 17. dxe6 {[%clk 0:02:23.4]} 17... c6 {[%clk 0:02:23.1]} 18. h3
{[%clk 0:02:06.3]} 18... Nh6 {[%clk 0:02:21.6]} 19. Rad1 {[%clk 0:01:51.1]}
19... Qxe6 {[%clk 0:02:10.1]} 20. Nd5 {[%clk 0:01:48.8]} 20... Kh8 {[%clk
0:01:57.8]} 21. Nf4 {[%clk 0:01:48.7]} 21... Qf7 {[%clk 0:01:54.2]} 22. Nd3
{[%clk 0:01:47.7]} 22... Rd8 {[%clk 0:01:37.6]} 23. Nc1 {[%clk 0:01:32.1]} 23...
Nc7 {[%clk 0:01:31.4]} 24. c5 {[%clk 0:01:32.2]} 24... Nb5 {[%clk 0:00:49.9]}
25. cxd6 {[%clk 0:01:30.7]} 25... Nxd6 {[%clk 0:00:46.3]} 26. Bxe5 {[%clk
0:01:25.1]} 26... Bxe5 {[%clk 0:00:46]} 27. Rxe5 {[%clk 0:01:26.6]} 27... Qf6
{[%clk 0:00:46.9]} 28. Re2 {[%clk 0:01:18.5]} 28... Nhf7 {[%clk 0:00:46.8]} 29.
Rde1 {[%clk 0:01:17.7]} 29... Ng5 {[%clk 0:00:37.7]} 30. Nd3 {[%clk 0:01:09.5]}
30... Nge4 {[%clk 0:00:37.5]} 31. Nf4 {[%clk 0:01:08.2]} 31... Rfe8 {[%clk
0:00:35.4]} 32. Kh2 {[%clk 0:01:08.8]} 32... Re7 {[%clk 0:00:29.2]} 33. f3
{[%clk 0:01:07.3]} 33... Rde8 {[%clk 0:00:20.4]} 34. fxe4 {[%clk 0:01:06.1]}
34... fxe4 {[%clk 0:00:22.3]} 35. Nh5 {[%clk 0:01:05.4]} 35... Qg6 {[%clk
0:00:22.3]} 36. Qc3+ {[%clk 0:01:05.8]} 36... Kg8 {[%clk 0:00:22.6]} 37. Nf6+
{[%clk 0:01:06]} 1